[Event "Gibraltar Challengers B 2019"]
[Site "Caleta"]
[Date "2019.01.26"]
[Round "1"]
[White "Vanheirzeele, Daniel"]
[Black "Gostelow, David W"]
[Result "1/2-1/2"]
[ECO "D15"]
[WhiteElo "2112"]
[BlackElo "1850"]
[Annotator "NA"]
[PlyCount "61"]
[EventDate "2019.01.18"]
[EventType "swiss"]
[EventCountry "GGB"]
[SourceTitle "playchess.com"]
[Source "ChessBase"]
[SourceQuality "1"]
[TimeControl "6600+10"]

1. d4 {[%emt 0:03:08]} d5 {[%emt 0:00:00]} 2. c4 {[%emt 0:02:04]} c6 {[%emt 0:00:11]} 3. Nf3 {[%emt 0:00:04]} Nf6 {[%emt 0:00:07]} 4. Nc3 {[%emt 0:01:38]} Qb6 {[%emt 0:00:06]} 5. Qb3 {[%emt 0:00:14]} Bf5 {[%emt 0:03:11]} 6. c5 {[%emt 0:09:11]} Qxb3 {[%emt 0:00:12]} 7. axb3 {[%emt 0:00:05]} Nbd7 {[%emt 0:00:23]} 8. b4 {[%emt 0:01:18]} a6 {[%emt 0:02:13]} 9. b5 {[%emt 0:10:04]} cxb5 {[%emt 0:00:30]} 10. Nxb5 {[%emt 0:00:02]} Rc8 {[%emt 0:00:09]} 11. Nc3 {[%emt 0:00:55]} e6 {[%emt 0:00:56]} 12. Bf4 {[%emt 0:14:11]} Be7 {[%emt 0:00:18]} 13. e3 {[%emt 0:00:09]} Nh5 {[%emt 0:03:37]} 14. Bg5 {[%emt 0:08:17]} f6 {[%emt 0:04:38]} 15. Bh4 {[%emt 0:03:54]} g5 {[%emt 0:02:13]} 16. Bg3 {[%emt 0:00:04]} Kf7 $14 {[%emt 0:09:52]} 17. Be2 {[%emt 0:00:27]} Nxg3 {[%emt 0:02:10]} 18. hxg3 {[%emt 0:00:06]} Rc7 {[%emt 0:14:05]} 19. b4 {[%emt 0:02:46]} Rb8 {[%emt 0:09:40]} 20. O-O {[%emt 0:05:36]} h5 {[%emt 0:05:45]} 21. Nd2 {[%emt 0:08:35]} h4 {[%emt 0:01:50]} 22. e4 {[%emt 0:14:18]} dxe4 {[%emt 0:00:47]} 23. Ndxe4 {[%emt 0:00:02]} Bxe4 {[%emt 0:10:34]} 24. Nxe4 {[%emt 0:00:03]} f5 {[%emt 0:00:25]} 25. Nd2 {[%emt 0:03:10]} hxg3 {[%emt 0:03:31]} 26. fxg3 {[%emt 0:00:04]} Nf6 {[%emt 0:10:08]} 27. Bc4 {[%emt 0:03:29]} Rd8 {[%emt 0:01:22]} 28. Nf3 {[%emt 0:02:38]} Nd5 {[%emt 0:09:09]} 29. Rae1 {[%emt 0:00:07]} Bf6 {[%emt 0:01:52]} 30. Ne5+ {[%emt 0:00:56]} Kg7 {[%emt 0:00:48]} 31. Rf3 {[%emt 0:02:05]} 1/2-1/2

[Event "Gibraltar Challengers B 2019"]
[Site "Caleta"]
[Date "2019.01.26"]
[Round "1"]
[White "Bottema, Martin"]
[Black "Erdogan, Hassan"]
[Result "1/2-1/2"]
[ECO "A53"]
[WhiteElo "2104"]
[BlackElo "1833"]
[Annotator "NA"]
[PlyCount "57"]
[EventDate "2019.01.18"]
[EventType "swiss"]
[EventCountry "GGB"]
[SourceTitle "playchess.com"]
[Source "ChessBase"]
[SourceQuality "1"]
[TimeControl "6600+10"]

1. d4 {[%emt 0:00:00]} Nf6 {[%emt 0:00:04]} 2. Nf3 {[%emt 0:00:04]} d6 {[%emt 0:01:39]} 3. c4 {[%emt 0:00:18]} Bg4 {[%emt 0:07:56]} 4. Qb3 {[%emt 0:01:46]} Qc8 {[%emt 0:00:37]} 5. g3 {[%emt 0:00:42]} Bxf3 {[%emt 0:05:10] A53: Old Indian Defence without Nf3} (5... Nbd7 6. Bg2 e5 7. O-O Be7 8. Nc3 c6 9. Be3 O-O 10. h3 exd4 11. Bxd4 Nc5 12. Bxc5 Bxf3 13. Bxf3 dxc5 {½-½ (26) Shankland,S (2662)-Naroditsky,D (2626) San Francisco 2017}) 6. Qxf3 {[%emt 0:00:59]} c6 {[%emt 0:04:49]} 7. Bg2 $146 {[%emt 0:02:58]} ({Predecessor:} 7. Nc3 e5 8. dxe5 dxe5 9. Bg5 Qe6 10. Bxf6 Qxf6 11. Qxf6 gxf6 12. O-O-O Nd7 13. Bh3 {1-0 (57) Miljkovic,M (2390)-Jovanovic,M (2082) Nis 2004}) 7... e5 {[%emt 0:06:07]} 8. dxe5 {[%emt 0:04:24]} dxe5 {[%emt 0:00:02]} 9. O-O {[%emt 0:00:18]} Be7 {[%emt 0:00:28]} 10. b3 {[%emt 0:02:22]} O-O {[%emt 0:02:03]} 11. Bb2 {[%emt 0:00:06]} Bd6 {[%emt 0:00:13]} 12. Rd1 {[%emt 0:06:04]} Qc7 {[%emt 0:00:06]} 13. Nd2 {[%emt 0:02:34]} Nbd7 {[%emt 0:00:26]} 14. Nf1 {[%emt 0:01:08]} Rad8 {[%emt 0:17:52]} 15. Ne3 {[%emt 0:03:44]} g6 {[%emt 0:01:06]} 16. Bh3 {[%emt 0:08:06]} e4 {[%emt 0:03:44]} 17. Qg2 {[%emt 0:03:27]} Be5 {[%emt 0:04:17]} 18. Rab1 {[%emt 0:02:10]} Bxb2 {[%emt 0:00:47]} 19. Rxb2 {[%emt 0:00:05]} Ne5 {[%emt 0:01:24]} 20. Qf1 {[%emt 0:00:17]} Qa5 $11 {[%emt 0:04:05]} 21. Qe1 {[%emt 0:03:15]} Qxe1+ {[%emt 0:15:28]} 22. Rxe1 {[%emt 0:00:04]} Nh5 {[%emt 0:00:49]} 23. Nf1 {[%emt 0:20:23]} f5 {[%emt 0:02:04]} 24. Rbb1 {[%emt 0:00:38]} Rd6 {[%emt 0:01:41]} 25. Red1 {[%emt 0:01:13]} Rfd8 {[%emt 0:00:02]} 26. Ne3 {[%emt 0:00:26]} Kf7 {[%emt 0:05:16]} 27. Kf1 {[%emt 0:04:18]} Ng7 {[%emt 0:00:59]} 28. Rxd6 {[%emt 0:06:36]} Rxd6 {[%emt 0:00:03]} 29. Rd1 {[%emt 0:00:28]} 1/2-1/2

[Event "Gibraltar Challengers B 2019"]
[Site "Caleta"]
[Date "2019.01.26"]
[Round "1"]
[White "Schouten, Freek"]
[Black "Maldonado Mena, German"]
[Result "0-1"]
[ECO "E76"]
[WhiteElo "2087"]
[BlackElo "1808"]
[Annotator "NA"]
[PlyCount "78"]
[EventDate "2019.01.18"]
[EventType "swiss"]
[EventCountry "GGB"]
[SourceTitle "playchess.com"]
[Source "ChessBase"]
[SourceQuality "1"]
[TimeControl "6600+10"]

1. d4 {[%emt 0:00:00]} Nf6 {[%emt 0:00:00]} 2. c4 {[%emt 0:00:04]} g6 {[%emt 0:00:06]} 3. Nc3 {[%emt 0:00:21]} Bg7 {[%emt 0:00:09]} 4. e4 {[%emt 0:00:17]} d6 {[%emt 0:00:05]} 5. f4 {[%emt 0:01:18]} O-O {[%emt 0:00:42]} 6. Nf3 {[%emt 0:00:12]} Ne8 {[%emt 0:01:04]} 7. Be2 {[%emt 0:00:52] E76: King's Indian: Four Pawns Attack: Lines specific to 6 Nf3 move-order} Bg4 {[%emt 0:00:25]} 8. O-O {[%emt 0:00:26]} Nd7 {[%emt 0:00:32]} 9. Be3 {[%emt 0:06:36]} c5 {[%emt 0:01:31]} 10. d5 {[%emt 0:02:59]} Qa5 $146 {[%emt 0:01:43]} ({Predecessor:} 10... Rb8 11. Qc2 f5 12. Ng5 Bxe2 13. Ne6 Qc8 14. Nxe2 Rf7 15. Ng3 fxe4 {1-0 (25) Rivera,I (2188)-Labrador Avendano,A (1611) Bogota 2018}) 11. Ng5 {[%emt 0:11:00]} Bxe2 {[%emt 0:01:02]} 12. Qxe2 {[%emt 0:00:19]} Bxc3 {[%emt 0:02:27]} 13. bxc3 {[%emt 0:00:15]} Qxc3 {[%emt 0:00:33]} 14. Rac1 {[%emt 0:00:27]} Qa5 {[%emt 0:02:39]} 15. Qg4 {[%emt 0:04:26]} Nef6 {[%emt 0:02:17]} 16. Qh3 {[%emt 0:01:13]} h5 {[%emt 0:01:45]} 17. e5 {[%emt 0:05:37]} dxe5 {[%emt 0:01:47]} 18. f5 {[%emt 0:04:27]} Ng4 {[%emt 0:02:55]} 19. fxg6 {[%emt 0:22:55]} fxg6 {[%emt 0:01:17]} 20. Rxf8+ {[%emt 0:10:03]} (20. Rfe1 $1 $15) 20... Rxf8 {[%emt 0:02:32]} 21. Ne6 {[%emt 0:00:40]} Rf7 {[%emt 0:03:32]} 22. Qg3 {[%emt 0:03:25]} Qa3 {[%emt 0:19:42]} 23. Re1 {[%emt 0:00:44]} Qd3 {[%emt 0:19:32]} 24. h3 {[%emt 0:04:07]} Nxe3 {[%emt 0:02:33]} 25. Rxe3 {[%emt 0:00:24]} Rf1+ {[%emt 0:04:44]} 26. Kh2 {[%emt 0:00:01]} Qf5 {[%emt 0:01:42]} 27. a4 {[%emt 0:08:39]} b6 $2 {[%emt 0:07:34]} (27... Qb1 {[%csl Gb1][%cal Rf1h1]} 28. Qh4 Rh1+ 29. Kg3 Nf6) 28. a5 {[%emt 0:02:39]} Rc1 {[%emt 0:01:42]} 29. axb6 {[%emt 0:04:07]} axb6 {[%emt 0:00:17]} 30. Ra3 {[%emt 0:04:00]} Rxc4 {[%emt 0:14:40]} 31. Ra8+ {[%emt 0:00:10]} Kh7 $18 {[%emt 0:00:56]} (31... Kf7 {is a better chance.}) 32. Qe3 {[%emt 0:10:05]} Qf6 {[%emt 0:06:42]} 33. Ng5+ {[%emt 0:00:45]} Kh6 {[%emt 0:02:37]} 34. Rh8+ {[%emt 0:01:43]} Kg7 {[%emt 0:00:12]} 35. Rh7+ {[%emt 0:00:12]} Kg8 {[%emt 0:00:24]} 36. Rf7 {[%emt 0:00:07]} Qd6 {[%emt 0:00:36]} 37. Rf1 {[%emt 0:00:16]} Rf4 {[%emt 0:01:29]} 38. Rd1 {[%emt 0:00:06]} Nf6 {[%emt 0:00:43]} 39. Kh1 {[%emt 0:00:12]} Nxd5 {[%emt 0:00:13]} 0-1

[Event "Gibraltar Challengers B 2019"]
[Site "Caleta"]
[Date "2019.01.26"]
[Round "1"]
[White "Suez-Panama, Gilles"]
[Black "Sidali, Elias Hulleberg"]
[Result "0-1"]
[ECO "E04"]
[WhiteElo "2078"]
[BlackElo "1783"]
[Annotator "NA"]
[PlyCount "58"]
[EventDate "2019.01.18"]
[EventType "swiss"]
[EventCountry "GGB"]
[SourceTitle "playchess.com"]
[Source "ChessBase"]
[SourceQuality "1"]
[TimeControl "6600+10"]

1. Nf3 {[%emt 0:01:53]} Nf6 {[%emt 0:00:01]} 2. d4 {[%emt 0:00:17]} d5 {[%emt 0:00:09]} 3. c4 {[%emt 0:02:28]} e6 {[%emt 0:01:38]} 4. g3 {[%emt 0:00:11]} dxc4 {[%emt 0:00:06]} 5. Bg2 {[%emt 0:00:07]} Bd7 {[%emt 0:00:37]} 6. Ne5 {[%emt 0:00:11]} Bc6 {[%emt 0:01:12]} 7. Nxc6 {[%emt 0:00:14]} Nxc6 {[%emt 0:01:36]} 8. Qa4 {[%emt 0:04:04]} Qd7 {[%emt 0:08:29]} 9. e3 {[%emt 0:08:41]} Nb4 {[%emt 0:01:26]} 10. Qxd7+ {[%emt 0:01:54]} Nxd7 {[%emt 0:00:16]} 11. Na3 {[%emt 0:02:54]} Nd3+ {[%emt 0:00:16]} 12. Ke2 {[%emt 0:00:00]} Bxa3 {[%emt 0:00:00]} 13. bxa3 {[%emt 0:00:00]} Rb8 {[%emt 0:06:06]} 14. Be4 {[%emt 0:00:14]} Nxc1+ {[%emt 0:00:04]} 15. Rhxc1 {[%emt 0:01:40]} b5 {[%emt 0:00:00]} 16. Rab1 {[%emt 0:01:06]} a6 {[%emt 0:00:00]} 17. a4 {[%emt 0:01:41]} Ke7 {[%emt 0:07:05]} 18. axb5 {[%emt 0:06:02]} axb5 {[%emt 0:00:00]} 19. a4 {[%emt 0:03:14]} bxa4 {[%emt 0:01:48]} 20. Rxc4 {[%emt 0:03:47]} f5 {[%emt 0:07:44]} 21. Rxb8 {[%emt 0:04:02]} Rxb8 {[%emt 0:00:24]} 22. Bc6 {[%emt 0:01:59]} Rb2+ {[%emt 0:00:00]} 23. Kf3 {[%emt 0:00:00]} a3 {[%emt 0:01:07]} 24. Bxd7 {[%emt 0:00:00]} Kxd7 {[%emt 0:00:00]} 25. Ra4 {[%emt 0:00:00]} a2 {[%emt 0:01:31]} 26. h4 {[%emt 0:01:59]} Kc6 {[%emt 0:00:20]} 27. Ra8 {[%emt 0:02:02]} Rc2 {[%emt 0:03:22]} 28. Ra7 {[%emt 0:01:17]} Kb5 {[%emt 0:00:14]} 29. Rb7+ {[%emt 0:01:01]} Kc4 {[%emt 0:00:46]} 0-1

[Event "Gibraltar Challengers B 2019"]
[Site "Caleta"]
[Date "2019.01.26"]
[Round "1"]
[White "Spacapan, Simon"]
[Black "Tkadlecek, Petr"]
[Result "1-0"]
[ECO "B33"]
[WhiteElo "2061"]
[BlackElo "1719"]
[Annotator "NA"]
[PlyCount "59"]
[EventDate "2019.01.18"]
[EventType "swiss"]
[EventCountry "GGB"]
[SourceTitle "playchess.com"]
[Source "ChessBase"]
[SourceQuality "1"]
[TimeControl "6600+10"]

1. e4 {[%emt 0:00:00]} c5 {[%emt 0:01:06]} 2. Nf3 {[%emt 0:00:05]} Nc6 {[%emt 0:00:10]} 3. d4 {[%emt 0:01:01]} cxd4 {[%emt 0:01:39]} 4. Nxd4 {[%emt 0:00:11]} Nf6 {[%emt 0:01:57]} 5. Nc3 {[%emt 0:00:54]} e5 {[%emt 0:00:50]} 6. Ndb5 {[%emt 0:00:10]} a6 {[%emt 0:01:35]} 7. Nd6+ {[%emt 0:00:50]} Bxd6 {[%emt 0:00:26]} 8. Qxd6 {[%emt 0:00:06]} Qe7 {[%emt 0:00:20] B33: Sicilian: Pelikan and Sveshnikov Variations} 9. Qd3 {[%emt 0:04:01]} h6 {[%emt 0:00:22]} (9... d6 10. Bg5 Be6 11. Be2 Nd4 12. Nd5 Bxd5 13. exd5 Nxe2 14. Qxe2 h6 15. Bxf6 Qxf6 {0-1 (51) Palchun,G (2454)-Hasangatin,R (2502) Sochi 2018}) 10. Be3 {[%emt 0:02:44]} Nb4 $146 {[%emt 0:01:50]} ({Predecessor:} 10... O-O 11. Nd5 Nxd5 12. exd5 e4 13. Qc3 Ne5 14. d6 Qe6 15. Bb6 Re8 16. O-O-O Qxa2 17. b3 a5 18. Kd2 Re6 19. Ra1 Rxd6+ 20. Bd4 {1-0 (20) Weichhold,P (2382)-Kula,D (1894) Teplice 2013}) 11. Qd2 {[%emt 0:04:29]} Ng4 {[%emt 0:01:05]} 12. Bb6 {[%emt 0:00:10]} O-O {[%emt 0:00:57]} 13. a3 {[%emt 0:04:32]} Qe6 {[%emt 0:26:30]} 14. Bc5 {[%emt 0:01:46]} Nc6 {[%emt 0:03:25]} 15. Bxf8 {[%emt 0:00:41]} Kxf8 {[%emt 0:00:07]} 16. Nd5 {[%emt 0:01:02]} Rb8 {[%emt 0:08:05]} 17. c3 {[%emt 0:13:34]} Na5 {[%emt 0:02:14]} 18. Rd1 {[%emt 0:00:14]} b5 {[%emt 0:01:06]} 19. b4 {[%emt 0:01:34]} Nb7 $18 {[%emt 0:02:42]} 20. Be2 {[%emt 0:02:20]} d6 {[%emt 0:03:47]} 21. O-O {[%emt 0:11:51]} Nf6 {[%emt 0:05:01]} 22. Nxf6 {[%emt 0:01:17]} Qxf6 {[%emt 0:00:22]} 23. c4 {[%emt 0:00:23]} Qg6 {[%emt 0:12:32]} 24. f3 {[%emt 0:03:16]} Bh3 {[%emt 0:08:22]} 25. Rf2 {[%emt 0:00:25]} Bd7 {[%emt 0:09:24]} 26. Qd5 {[%emt 0:02:39]} bxc4 {[%emt 0:10:25]} 27. Bxc4 {[%emt 0:01:10]} Be6 {[%emt 0:04:41]} 28. Qc6 {[%emt 0:03:17]} a5 {[%emt 0:02:01]} 29. Ba6 {[%emt 0:02:18]} axb4 {[%emt 0:01:36]} 30. Bxb7 {[%emt 0:00:18]} 1-0

[Event "Gibraltar Challengers B 2019"]
[Site "Caleta"]
[Date "2019.01.26"]
[Round "1"]
[White "Cao Armillas, Jesus"]
[Black "Meszaros, Andras"]
[Result "0-1"]
[ECO "E68"]
[WhiteElo "2048"]
[BlackElo "2226"]
[Annotator "NA"]
[PlyCount "122"]
[EventDate "2019.01.18"]
[EventType "swiss"]
[EventCountry "GGB"]
[SourceTitle "playchess.com"]
[Source "ChessBase"]
[SourceQuality "1"]
[TimeControl "6600+10"]

1. d4 {[%emt 0:00:00]} Nf6 {[%emt 0:00:00]} 2. c4 {[%emt 0:00:00]} g6 {[%emt 0:00:09]} 3. Nc3 {[%emt 0:00:08]} Bg7 {[%emt 0:00:09]} 4. g3 {[%emt 0:00:05]} O-O {[%emt 0:00:15]} 5. Bg2 {[%emt 0:00:04]} d6 {[%emt 0:00:41]} 6. Nf3 {[%emt 0:00:12]} Nbd7 {[%emt 0:00:21]} 7. O-O {[%emt 0:00:06]} e5 {[%emt 0:00:07]} 8. e4 {[%emt 0:00:04]} exd4 {[%emt 0:00:16]} 9. Nxd4 {[%emt 0:00:04]} Re8 {[%emt 0:00:10]} 10. Re1 {[%emt 0:00:33]} Nc5 {[%emt 0:00:14]} 11. Rb1 {[%emt 0:01:15] LiveBook: 7 Games E68: King's Indian: Fianchetto: 6...Nbd7 7 0-0 e5 8 e4} (11. h3 Bd7 12. Bf4 h6 13. Nb3 Na4 14. Bd2 Nxb2 15. Qe2 Na4 16. Rab1 Nxc3 17. Bxc3 Rb8 18. c5 dxc5 19. Nxc5 Bc6 20. Qb2 b6 {1-0 (50) Yu,Y (2750)-Ganguly,S (2665) Ashkhabad 2017}) 11... Bd7 {[%emt 0:00:15]} 12. f3 $146 {[%emt 0:03:39]} ({Predecessor:} 12. Bf4 Ng4 13. h3 Ne5 14. Bf1 Qc8 15. Kh2 Ned3 16. Bxd3 Bxd4 17. Bf1 Bg7 18. Nd5 c6 {1-0 (63) Vijayalakshmi,S (2351)-Demchenko,A (2596) Chennai 2016}) 12... a6 {[%emt 0:07:28]} 13. Bg5 {[%emt 0:03:43]} h6 {[%emt 0:00:23]} 14. Be3 {[%emt 0:00:50]} Rb8 {[%emt 0:00:18]} 15. Nb3 {[%emt 0:04:12]} Nxb3 {[%emt 0:06:12]} 16. axb3 {[%emt 0:00:26]} Bc6 {[%emt 0:00:31]} 17. Qd2 {[%emt 0:02:20]} Kh7 {[%emt 0:00:14]} 18. Ba7 {[%emt 0:06:12]} Ra8 {[%emt 0:00:30]} 19. Bd4 {[%emt 0:00:08]} a5 {[%emt 0:01:51]} 20. Rbd1 {[%emt 0:05:08]} Nd7 {[%emt 0:01:19]} 21. Bxg7 {[%emt 0:00:12]} Kxg7 {[%emt 0:00:06]} 22. Nd5 {[%emt 0:03:29]} Bxd5 {[%emt 0:01:47]} 23. Qxd5 {[%emt 0:08:35]} Re5 {[%emt 0:08:11]} 24. Qd2 {[%emt 0:02:58]} Qf6 {[%emt 0:01:44]} 25. f4 {[%emt 0:02:31]} Re7 {[%emt 0:00:08]} 26. Re3 {[%emt 0:03:37]} Nc5 {[%emt 0:03:23]} 27. Rde1 {[%emt 0:24:04]} Rae8 {[%emt 0:00:20]} 28. e5 {[%emt 0:03:29]} (28. Qxa5 $15 Qxb2 29. Qa1 Qxa1 30. Rxa1) 28... dxe5 {[%emt 0:00:24]} 29. Qxa5 {[%emt 0:03:42]} exf4 {[%emt 0:02:06]} 30. Rxe7 {[%emt 0:00:41]} Rxe7 {[%emt 0:00:37]} 31. Rxe7 {[%emt 0:01:09]} Qxe7 {[%emt 0:01:06]} 32. Qc3+ {[%emt 0:01:06]} Qf6 {[%emt 0:02:40]} 33. b4 {[%emt 0:01:47]} Qxc3 {[%emt 0:00:14]} 34. bxc3 {[%emt 0:00:05] [#]} Na4 $1 {[%emt 0:00:19]} 35. Bxb7 {[%emt 0:00:36]} fxg3 {[%emt 0:00:11]} 36. hxg3 {[%emt 0:00:04]} Kf6 {[%emt 0:00:37]} 37. Kf2 {[%emt 0:01:35]} Nxc3 {[%emt 0:00:48]} 38. Ke3 {[%emt 0:02:06]} Ke5 {[%emt 0:01:04]} 39. Bc6 {[%emt 0:01:27]} f5 {[%emt 0:00:46]} 40. Be8 {[%emt 0:00:41]} g5 {[%emt 0:00:10]} 41. b5 {[%emt 0:04:14]} Ne4 {[%emt 0:02:19]} 42. Bc6 {[%emt 0:01:05]} Nxg3 {[%emt 0:04:27]} 43. c5 {[%emt 0:00:36]} Ne4 {[%emt 0:01:10]} 44. b6 {[%emt 0:01:15]} cxb6 {[%emt 0:00:12]} 45. cxb6 {[%emt 0:00:07]} Kd6 {[%emt 0:02:49]} 46. Be8 {[%emt 0:04:38]} Nf6 {[%emt 0:02:01]} 47. Bg6 {[%emt 0:01:04]} f4+ {[%emt 0:01:46]} 48. Kd4 {[%emt 0:01:31]} Kc6 {[%emt 0:00:27]} 49. Bf5 {[%emt 0:00:53]} Kxb6 {[%emt 0:01:35]} 50. Ke5 {[%emt 0:00:06]} Ne8 {[%emt 0:01:41]} 51. Bg4 {[%emt 0:02:56]} Kc5 {[%emt 0:00:50]} 52. Kf5 {[%emt 0:00:25]} Kd4 {[%emt 0:00:50]} 53. Kg6 {[%emt 0:00:35]} Ke5 {[%emt 0:02:02]} 54. Kxh6 {[%emt 0:00:41]} Nf6 {[%emt 0:01:55]} 55. Bd1 {[%emt 0:00:42]} g4 {[%emt 0:00:35]} 56. Kg5 {[%emt 0:00:33]} f3 {[%emt 0:01:03]} 57. Kh4 {[%emt 0:01:19]} Kf4 {[%emt 0:00:14]} 58. Bb3 {[%emt 0:01:33]} Nd7 {[%emt 0:00:29]} 59. Bc4 {[%emt 0:01:11]} Ne5 {[%emt 0:00:08]} 60. Bf1 {[%emt 0:00:11]} Ng6+ {[%emt 0:00:09]} 61. Kh5 {[%emt 0:00:52]} g3 {[%emt 0:00:11]} 0-1

[Event "Gibraltar Challengers B 2019"]
[Site "Caleta"]
[Date "2019.01.26"]
[Round "1"]
[White "Hamer, Martyn"]
[Black "Dolzhikova, Olga"]
[Result "1-0"]
[ECO "B00"]
[WhiteElo "2046"]
[BlackElo "2224"]
[Annotator "NA"]
[PlyCount "82"]
[EventDate "2019.01.18"]
[EventType "swiss"]
[EventCountry "GGB"]
[SourceTitle "playchess.com"]
[Source "ChessBase"]
[SourceQuality "1"]
[TimeControl "6600+10"]

1. d4 {[%emt 0:00:00]} e6 {[%emt 0:04:14]} 2. Nf3 {[%emt 0:00:23]} b6 {[%emt 0:00:11]} 3. e4 {[%emt 0:00:35]} Bb7 {[%emt 0:00:05]} 4. Bd3 {[%emt 0:00:16]} c5 {[%emt 0:00:13]} 5. c3 {[%emt 0:01:58]} d6 {[%emt 0:08:37]} 6. O-O {[%emt 0:01:57]} Nf6 {[%emt 0:04:18]} 7. Qe2 {[%emt 0:01:30]} Be7 {[%emt 0:01:51]} 8. Nbd2 {[%emt 0:05:38] LiveBook: 9 Games B00: Queen's Fianchetto Defence, Nimzowitsch Defence} (8. Bg5 O-O 9. e5 Ne8 10. Bxe7 Qxe7 11. Nbd2 Nd7 12. Ne4 Rd8 13. Rfe1 g6 14. Rad1 cxd4 15. cxd4 dxe5 16. dxe5 {1-0 (26) Perdomo,L (2449)-Granda Zuniga,J (2657) Florianopolis 2018}) 8... Qc7 {[%emt 0:05:08]} 9. Re1 {[%emt 0:04:03]} Nc6 {[%emt 0:11:20]} 10. e5 $146 {[%emt 0:07:44]} ({Predecessor:} 10. Nc4 d5 11. exd5 Nxd5 12. Nce5 Nxe5 13. Nxe5 O-O 14. dxc5 bxc5 15. Qh5 f5 {1-0 (42) Fugger,C (1938)-Kuecher,W (2075) Neumarkt am Wallersee 2012}) 10... Nd5 {[%emt 0:10:07]} 11. Nf1 {[%emt 0:04:03]} cxd4 {[%emt 0:02:58]} 12. cxd4 {[%emt 0:00:15]} Ndb4 {[%emt 0:04:14]} 13. Bb1 {[%emt 0:03:47]} dxe5 {[%emt 0:03:52]} 14. dxe5 {[%emt 0:00:23]} (14. a3 $5 {[%cal Ra3b4]}) 14... Rd8 {[%emt 0:01:04]} 15. Bg5 {[%emt 0:04:51]} Ba6 {[%emt 0:16:07]} 16. Qe4 {[%emt 0:01:49]} Bxg5 {[%emt 0:15:38]} 17. Nxg5 {[%emt 0:00:20] [#]} Rd4 {[%emt 0:02:46]} (17... Bd3 $1 $17 {[%cal Rd3e4]} 18. Qh4 Bxb1 19. Raxb1 Nd3) 18. Qf3 {[%emt 0:07:21]} h6 {[%emt 0:06:16]} 19. Qh5 {[%emt 0:07:44]} O-O {[%emt 0:01:25]} 20. Nf3 {[%emt 0:05:23]} Rd7 {[%emt 0:00:40]} 21. Be4 {[%emt 0:08:47]} Bd3 {[%emt 0:02:52]} 22. Ng3 {[%emt 0:01:03]} Nc2 {[%emt 0:02:56]} 23. Rad1 {[%emt 0:12:17]} Nxe1 {[%emt 0:00:45]} 24. Rxe1 {[%emt 0:00:08]} Rfd8 {[%emt 0:01:33]} 25. h3 {[%emt 0:01:45]} Bxe4 {[%emt 0:01:57]} 26. Rxe4 {[%emt 0:01:00]} Nd4 {[%emt 0:00:30]} 27. Rg4 {[%emt 0:03:00]} Nxf3+ {[%emt 0:00:17]} 28. gxf3 {[%emt 0:00:05]} g6 $2 {[%emt 0:01:34]} (28... Qc1+ 29. Kh2 Rd1) 29. Qxh6 {[%emt 0:00:58]} Qxe5 {[%emt 0:00:14]} 30. Nh5 $2 {[%emt 0:02:27]} (30. Kg2) 30... Qh8 {[%emt 0:01:01]} 31. Qg5 {[%emt 0:00:43]} Kf8 {[%emt 0:00:15]} 32. Nf4 {[%emt 0:01:40]} Qg7 {[%emt 0:00:10]} 33. Kg2 {[%emt 0:00:42]} Rd5 {[%emt 0:00:09]} 34. Nxd5 {[%emt 0:01:04]} Rxd5 {[%emt 0:00:02]} 35. Qf4 {[%emt 0:00:17]} Qe5 {[%emt 0:00:13]} 36. Qb4+ {[%emt 0:00:36]} Kg7 {[%emt 0:00:05]} 37. b3 {[%emt 0:01:08]} Rd1 {[%emt 0:00:10]} 38. Re4 $2 {[%emt 0:02:47]} (38. Qe4 $17 Qa1 39. f4) 38... Qa1 {[%emt 0:00:11]} 39. Kg3 {[%emt 0:01:02]} Rg1+ {[%emt 0:00:06]} 40. Kf4 {[%emt 0:00:27]} g5+ {[%emt 0:00:22]} 41. Ke3 {[%emt 0:00:09]} Qc1+ {[%emt 0:00:14]} 1-0